bitfinex/quotes_BTCUSD_20230118
["timestamp","ask_amount","ask_price","bid_price","bid_amount"]
[1674000183053,0.00723546,21158.0,21157.0,3.6313897]
[1674000183331,0.00723546,21158.0,21157.0,4.51310452]
[1674000183589,0.00723546,21158.0,21157.0,5.10643949]
[1674000183843,0.00723546,21158.0,21157.0,4.89649871]
[1674000184152,0.00723546,21158.0,21157.0,4.14095626]
[1674000184409,0.00723546,21158.0,21157.0,3.75575457]
[1674000184663,0.00723546,21158.0,21157.0,3.83329745]
[1674000184920,0.00723546,21158.0,21157.0,3.75575457]
[1674000185180,0.00723546,21158.0,21157.0,3.69916541]
[1674000185994,0.00705546,21158.0,21157.0,3.92523984]
[1674000186252,0.00663546,21158.0,21157.0,3.69916541]
[1674000186525,0.00663546,21158.0,21157.0,3.81214847]
[1674000187055,0.00663546,21158.0,21157.0,3.49634431]
[1674000187342,0.00663546,21158.0,21157.0,3.82074335]
[1674000187848,4.6e-07,21158.0,21157.0,4.46591112]
[1674000188129,4.6e-07,21158.0,21157.0,4.35462012]
[1674000188392,4.6e-07,21158.0,21157.0,4.66719419]
[1674000188662,4.6e-07,21158.0,21157.0,4.89307703]
[1674000189188,4.6e-07,21158.0,21157.0,4.39887124]
[1674000189530,4.6e-07,21158.0,21157.0,4.0809884]
[1674000189771,4.6e-07,21158.0,21157.0,4.19388126]
[1674000190021,4.6e-07,21158.0,21157.0,4.59199011]
[1674000190278,4.6e-07,21158.0,21157.0,4.76172939]
[1674000190533,4.6e-07,21158.0,21157.0,4.48747988]
[1674000190810,4.6e-07,21158.0,21157.0,4.74695131]
[1674000191068,0.00168416,21161.0,21157.0,4.74695131]
[1674000191069,0.00168416,21161.0,21158.0,0.34596352]
[1674000191339,0.00168416,21161.0,21160.0,0.125]
[1674000191589,0.00168416,21161.0,21160.0,2.62459139]
[1674000191845,0.00168416,21161.0,21160.0,2.45535644]
[1674000191846,0.00019306,21161.0,21160.0,2.45535644]
[1674000192082,0.00019306,21161.0,21160.0,2.75535644]
[1674000192321,0.00019306,21161.0,21160.0,2.92458378]
[1674000192804,0.00019306,21161.0,21160.0,2.0383245]
[1674000193360,0.00019306,21161.0,21160.0,2.58097082]
[1674000193814,0.00019306,21161.0,21160.0,2.96176376]
[1674000194308,0.00019306,21161.0,21160.0,2.86976376]
[1674000194557,2.645e-05,21161.0,21160.0,2.86976376]
[1674000194800,0.00850668,21164.0,21162.0,0.19997355]
[1674000195060,0.00850668,21164.0,21162.0,2.51455355]
[1674000195308,0.00850668,21164.0,21162.0,3.11392255]
[1674000196037,0.00850668,21164.0,21162.0,3.20592255]
[1674000197019,0.00850668,21164.0,21162.0,3.11392255]
[1674000197624,0.00850668,21164.0,21162.0,3.20592255]
[1674000200353,0.00850668,21164.0,21162.0,4.53501975]
[1674000200612,0.00850668,21164.0,21162.0,4.61160843]
[1674000200852,0.00850668,21164.0,21162.0,5.11110843]
[1674000201106,0.00850668,21164.0,21162.0,4.81451718]
[1674000201376,0.00850668,21164.0,21162.0,5.04968173]
[1674000201610,0.00850668,21164.0,21162.0,4.63054154]
[1674000202102,0.00850668,21164.0,21162.0,4.42578173]
[1674000202352,0.00850668,21164.0,21162.0,4.09861718]
[1674000202592,0.00850668,21164.0,21163.0,0.29842552]
[1674000202842,0.00850668,21164.0,21163.0,1.66856952]
[1674000203091,0.00850668,21164.0,21163.0,1.74673252]
[1674000203577,0.00850668,21164.0,21163.0,1.89673252]
[1674000203810,0.00850668,21164.0,21163.0,1.89745361]
[1674000204312,0.00850668,21164.0,21163.0,1.74745361]
[1674000204559,0.00850668,21164.0,21163.0,0.89440961]
[1674000204822,0.00850668,21164.0,21163.0,1.83945361]
[1674000205310,0.00850668,21164.0,21163.0,1.89745361]
[1674000205559,0.00850668,21164.0,21163.0,1.83945361]
[1674000205795,0.00850668,21164.0,21163.0,1.98945361]
[1674000206541,0.00850668,21164.0,21163.0,1.89745361]
[1674000206796,0.00850668,21164.0,21163.0,1.98945361]
[1674000207045,0.00850668,21164.0,21163.0,2.48300636]
[1674000207291,0.00850668,21164.0,21163.0,2.56978253]
[1674000207541,0.00350668,21164.0,21163.0,3.40030175]
[1674000207800,0.00350668,21164.0,21163.0,3.21640443]
[1674000208042,6.171e-05,21164.0,21163.0,3.12440443]
[1674000208293,6.171e-05,21164.0,21163.0,3.21640443]
[1674000208798,6.171e-05,21164.0,21163.0,4.24934854]
[1674000209046,6.171e-05,21164.0,21163.0,4.36233938]
[1674000209300,7.1e-07,21164.0,21163.0,4.23723938]
[1674000209539,0.00883824,21167.0,21164.0,0.47763036]
[1674000209810,0.19956419,21167.0,21165.0,1.417434]
[1674000210061,0.19956419,21167.0,21165.0,0.944956]
[1674000210318,0.321316,21166.0,21165.0,0.944956]
[1674000211081,0.44665702,21166.0,21165.0,0.092]
[1674000211324,0.44665702,21166.0,21162.0,0.82249955]
[1674000211567,0.44665702,21166.0,21162.0,0.19997355]
[1674000211568,0.93666177,21165.0,21162.0,0.19997355]
[1674000211815,0.1239,21163.0,21162.0,0.19997355]
[1674000212064,0.44545702,21163.0,21162.0,0.19997355]
[1674000212844,0.445216,21163.0,21162.0,0.19997355]
[1674000213085,0.445216,21163.0,21162.0,0.21997091]
[1674000213086,0.44545702,21163.0,21162.0,0.21997091]
[1674000213605,0.63594195,21163.0,21162.0,0.19997355]
[1674000213841,0.445216,21163.0,21162.0,0.19997355]
[1674000214092,0.321316,21163.0,21162.0,0.19997355]
[1674000214333,0.321316,21163.0,21162.0,0.24497355]
[1674000214594,0.61980277,21163.0,21162.0,0.19997355]
[1674000214840,0.61980277,21163.0,21162.0,0.24497355]
[1674000215086,0.61980277,21163.0,21162.0,0.19997355]
[1674000215519,0.41982922,21163.0,21162.0,0.06499736]
[1674000215786,0.41982922,21163.0,21159.0,0.80251182]
[1674000216074,0.321316,21162.0,21160.0,0.3]
[1674000216341,0.321293,21161.0,21160.0,0.3]
[1674000216604,0.29848677,21163.0,21160.0,0.772586]
[1674000216860,0.3976,21165.0,21161.0,0.38211126]
[1674000217115,0.35568138,21167.0,21162.0,0.77254]
[1674000217369,0.35568138,21167.0,21163.0,0.14630315]
[1674000217891,0.29258173,21165.0,21163.0,0.14630315]
[1674000218148,0.321293,21164.0,21162.0,0.47254]
[1674000218432,0.321293,21164.0,21161.0,0.472559]
[1674000218433,0.63094869,21163.0,21161.0,0.472559]
[1674000218662,0.321293,21162.0,21160.0,0.472586]
[1674000218914,0.1251,21165.0,21160.0,0.472586]
[1674000218915,0.1251,21165.0,21161.0,0.40006729]
[1674000219157,0.1251,21165.0,21161.0,0.77810789]
[1674000219407,0.321293,21164.0,21161.0,0.77810789]
[1674000219656,0.321293,21163.0,21162.0,0.3]
[1674000219909,0.85630657,21166.0,21162.0,0.94486929]
[1674000220193,0.49410657,21166.0,21162.0,1.50541429]
[1674000220430,0.37000657,21166.0,21163.0,0.08422804]
[1674000220688,0.37000657,21166.0,21164.0,0.4725]
[1674000220941,0.00883824,21167.0,21164.0,0.4725]
[1674000220942,0.00883824,21167.0,21165.0,0.3]
[1674000221190,0.00883824,21167.0,21166.0,0.07725]
[1674000221504,0.33013124,21167.0,21166.0,0.07725]
[1674000221745,0.33013124,21167.0,21166.0,0.549705]
[1674000222015,0.00883824,21167.0,21166.0,1.32216]
[1674000222296,0.01383824,21167.0,21166.0,1.32216]
[1674000222548,0.01383824,21167.0,21166.0,1.18829234]
[1674000222821,0.01407926,21167.0,21166.0,1.09321605]
[1674000223075,0.01383824,21167.0,21166.0,1.09321605]
[1674000223336,0.00883824,21167.0,21166.0,1.09321605]
[1674000223633,0.01383824,21167.0,21166.0,1.10021605]
[1674000223892,0.00883824,21167.0,21166.0,1.09321605]
[1674000224160,0.00883824,21167.0,21166.0,1.24321605]
[1674000224412,0.00883824,21167.0,21166.0,1.63402813]
[1674000224665,0.00883824,21167.0,21166.0,1.45930805]
[1674000224913,0.00883824,21167.0,21166.0,1.18121605]
[1674000225178,0.00883824,21167.0,21166.0,1.09321605]
[1674000226195,0.00883824,21167.0,21166.0,1.60930805]
[1674000226441,0.00883824,21167.0,21166.0,1.52130805]
[1674000226694,0.00883824,21167.0,21166.0,1.60930805]
[1674000226937,0.00883824,21167.0,21166.0,1.52130805]
[1674000227185,0.00883824,21167.0,21166.0,1.60930805]
[1674000227971,0.00883824,21167.0,21166.0,1.60430805]
[1674000228199,0.00883824,21167.0,21166.0,1.32621605]
[1674000229200,0.00883824,21167.0,21166.0,1.60430805]
[1674000229449,0.00883824,21167.0,21166.0,1.32621605]
[1674000229984,0.00883824,21167.0,21166.0,1.60430805]
[1674000230751,0.00883824,21167.0,21166.0,2.18948313]
[1674000231003,0.00883824,21167.0,21166.0,2.07676305]
[1674000231296,0.00206484,21167.0,21166.0,2.03948313]
[1674000232061,0.00206484,21167.0,21166.0,2.03448313]
[1674000232841,0.00206484,21167.0,21166.0,2.52478313]
[1674000233165,0.00036101,21167.0,21166.0,3.52954064]
[1674000233429,0.00036101,21167.0,21166.0,4.02189755]
[1674000233685,0.00036101,21167.0,21166.0,3.87214772]
[1674000233686,1e-08,21167.0,21166.0,3.87214772]
[1674000233983,1e-08,21167.0,21166.0,4.32130062]
[1674000234236,1e-08,21167.0,21166.0,4.14199629]
[1674000234502,1e-08,21167.0,21166.0,3.92470639]
[1674000234759,1e-08,21167.0,21166.0,4.15049345]
[1674000235022,1e-08,21167.0,21166.0,3.86843116]
[1674000235505,1e-08,21167.0,21166.0,4.03775756]
[1674000235507,1e-08,21167.0,21166.0,4.03776016]
[1674000235788,1e-08,21167.0,21166.0,3.8119731]
[1674000236032,1e-08,21167.0,21166.0,3.46106679]
[1674000236301,1e-08,21167.0,21166.0,3.86536016]
[1674000236572,1e-08,21167.0,21166.0,3.95736016]
[1674000236828,1e-08,21167.0,21166.0,3.69603116]
[1674000237111,0.00967533,21170.0,21166.0,3.69603116]
[1674000237112,0.00967533,21170.0,21167.0,5.999e-05]
[1674000237366,0.00967533,21170.0,21168.0,2.64896381]
[1674000237625,0.00967533,21170.0,21169.0,0.84089325]
[1674000237887,0.00967533,21170.0,21169.0,1.87962236]
[1674000238142,0.00967533,21170.0,21169.0,2.44502362]
[1674000239426,0.00967533,21170.0,21169.0,2.53702362]
[1674000240217,0.00967533,21170.0,21169.0,1.60982193]
[1674000240477,0.00967533,21170.0,21169.0,1.32677593]
[1674000240731,0.00967533,21170.0,21169.0,1.23477593]
[1674000242395,0.86953591,21170.0,21169.0,0.092]
[1674000242661,1.31147596,21170.0,21169.0,0.092]
[1674000242928,1.46147596,21170.0,21169.0,0.092]
[1674000243416,0.15,21169.0,21167.0,5.999e-05]
[1674000243417,0.15,21169.0,21168.0,0.007]
[1674000243691,0.3887232,21169.0,21167.0,5.999e-05]
[1674000243949,0.473093,21168.0,21167.0,5.999e-05]
[1674000245807,0.81868962,21168.0,21167.0,0.00705999]
[1674000246338,0.66688962,21168.0,21167.0,0.00705999]
[1674000246596,0.34559662,21168.0,21167.0,0.00705999]
[1674000246857,0.66688962,21168.0,21167.0,0.00705999]
[1674000249105,0.34559662,21168.0,21167.0,0.00705999]
[1674000249274,0.66688962,21168.0,21167.0,0.47949299]
[1674000249507,0.66688962,21168.0,21167.0,0.77949299]
[1674000249952,0.66688962,21168.0,21167.0,1.35987529]
[1674000250176,0.015,21168.0,21167.0,1.72785622]
[1674000250628,0.015,21168.0,21167.0,2.00093222]
[1674000251116,0.00967533,21170.0,21167.0,2.07407223]
[1674000251359,0.00967533,21170.0,21168.0,0.37135503]
[1674000251573,0.00967533,21170.0,21169.0,1.69521]
[1674000251809,0.00967533,21170.0,21169.0,1.96421913]
[1674000252025,0.00967533,21170.0,21169.0,1.717164]
[1674000252272,0.28509128,21170.0,21169.0,1.717164]
[1674000252715,0.28509128,21170.0,21167.0,0.472413]
[1674000252716,0.291463,21168.0,21167.0,0.472413]
[1674000252895,0.87938195,21168.0,21165.0,0.472463]
[1674000253116,0.51201895,21167.0,21165.0,0.472463]
[1674000253342,0.321293,21166.0,21165.0,0.472463]
[1674000253569,0.59449624,21166.0,21164.0,0.472479]
[1674000253800,0.321293,21165.0,21164.0,0.472479]
[1674000254476,0.321293,21165.0,21162.0,0.472534]
[1674000254706,0.321293,21164.0,21162.0,0.472534]
[1674000255216,0.321293,21163.0,21161.0,0.74356517]
[1674000255237,0.321293,21163.0,21161.0,1.21611017]
[1674000255501,0.001,21165.0,21162.0,0.472536]
[1674000256033,0.321293,21164.0,21162.0,0.472536]
[1674000256291,0.321293,21163.0,21162.0,0.547536]
[1674000256542,0.321293,21163.0,21162.0,0.772536]
[1674000256800,0.34866222,21166.0,21162.0,0.772536]
[1674000256801,0.001,21165.0,21162.0,0.847536]
[1674000257061,0.34866222,21166.0,21163.0,0.3]
[1674000257320,0.34866222,21166.0,21163.0,1.12764717]
[1674000257607,0.321293,21165.0,21163.0,1.12764717]
[1674000257867,0.27296222,21166.0,21163.0,1.12764717]
[1674000258149,0.001,21165.0,21163.0,1.12764717]
[1674000258665,0.001,21165.0,21163.0,1.60016917]
[1674000259148,0.001,21165.0,21164.0,0.17930433]
[1674000259187,0.34715793,21169.0,21163.0,2.18581642]
[1674000259417,0.001,21165.0,21163.0,2.64019116]
[1674000259674,0.53788388,21169.0,21164.0,0.945]
[1674000259968,0.34715793,21169.0,21164.0,0.945]
[1674000260263,0.34915793,21169.0,21165.0,0.3]
[1674000260518,0.34715793,21169.0,21166.0,1.417353]
[1674000260773,0.34715793,21169.0,21167.0,0.3]
[1674000260774,0.34915793,21169.0,21167.0,0.3]
[1674000261035,0.34915793,21169.0,21168.0,0.944822]
[1674000261297,0.323293,21169.0,21168.0,1.244822]
[1674000261590,0.32353402,21169.0,21168.0,0.944822]
[1674000261876,0.32353402,21169.0,21166.0,0.472451]
[1674000261877,0.87896125,21169.0,21166.0,0.472451]
[1674000262150,0.0759,21168.0,21165.0,0.472465]
[1674000262426,0.321293,21167.0,21165.0,0.472465]
[1674000262692,0.35548961,21168.0,21165.0,0.472465]
[1674000262693,0.321293,21166.0,21165.0,0.944943]
[1674000263492,0.001,21167.0,21165.0,1.019943]
[1674000263758,0.001,21167.0,21166.0,0.60514742]
[1674000264027,0.00967533,21170.0,21166.0,1.55005742]
[1674000264831,0.00024102,21169.0,21166.0,1.55005742]
[1674000265094,0.00024102,21169.0,21166.0,1.25005742]
[1674000265095,0.51225997,21169.0,21166.0,1.25005742]
[1674000265374,0.397193,21168.0,21165.0,0.547477]
[1674000265864,0.321293,21167.0,21165.0,0.472477]
[1674000265898,0.321293,21167.0,21166.0,0.048]
[1674000266162,0.321293,21167.0,21165.0,0.472477]
[1674000266415,0.0759,21168.0,21165.0,0.944933]
[1674000266707,0.32903606,21169.0,21166.0,0.3]
[1674000266708,0.32879504,21169.0,21166.0,0.3]
[1674000266998,0.321293,21168.0,21166.0,0.772453]
[1674000267266,0.001,21167.0,21166.0,1.07192246]
[1674000267523,0.001,21167.0,21166.0,1.54437746]
[1674000268059,0.00967533,21170.0,21166.0,1.54437746]
[1674000268362,0.001,21169.0,21166.0,1.61937746]
[1674000268637,0.00967533,21170.0,21168.0,0.0756]
[1674000268902,0.00967533,21170.0,21169.0,1.020376]
[1674000269177,0.00967533,21170.0,21169.0,1.298421]
[1674000269431,0.01067533,21170.0,21169.0,1.244776]
[1674000269718,0.00967533,21170.0,21169.0,1.244776]
[1674000270514,0.00967533,21170.0,21169.0,1.336776]
[1674000270767,0.00707533,21170.0,21169.0,1.336776]
[1674000271068,0.00731635,21170.0,21169.0,1.036776]
[1674000271338,0.00707533,21170.0,21169.0,1.036776]
[1674000272125,0.32836833,21170.0,21169.0,1.036776]
[1674000273518,0.32836833,21170.0,21169.0,0.564388]
[1674000273519,0.32860935,21170.0,21169.0,0.564388]
[1674000274106,0.32836833,21170.0,21169.0,0.092]
[1674000274623,0.32836833,21170.0,21169.0,0.087]
[1674000275186,0.32836833,21170.0,21169.0,0.559388]
[1674000275449,0.32836833,21170.0,21169.0,0.087]
[1674000275703,0.32860935,21170.0,21169.0,0.087]
[1674000276182,0.32836833,21170.0,21169.0,0.087]
[1674000276750,0.32860935,21170.0,21169.0,0.087]
[1674000277006,0.32836833,21170.0,21169.0,0.087]
[1674000277267,0.40426833,21170.0,21169.0,0.087]
[1674000277804,0.40450935,21170.0,21169.0,0.087]
[1674000278078,0.87687535,21170.0,21166.0,0.472435]
[1674000278344,0.0759,21167.0,21164.0,0.472481]
[1674000278606,0.51201895,21166.0,21164.0,0.472481]
[1674000278865,0.321293,21165.0,21164.0,0.472481]
[1674000280215,0.321293,21165.0,21164.0,0.552481]
[1674000280701,0.321293,21165.0,21164.0,0.472481]
[1674000280702,0.322293,21165.0,21164.0,0.552481]
[1674000280962,0.001,21165.0,21164.0,1.61993507]
[1674000281221,0.3843,21169.0,21164.0,1.53993507]
[1674000281485,0.3843,21169.0,21164.0,1.62093507]
[1674000281486,0.001,21165.0,21164.0,1.62093507]
[1674000281833,0.001,21165.0,21164.0,2.01243507]
[1674000282013,0.002,21165.0,21164.0,2.20528232]
[1674000282271,0.00707533,21170.0,21164.0,2.81047538]
[1674000282530,0.00707533,21170.0,21165.0,0.3]
[1674000282786,0.00707533,21170.0,21166.0,1.75842097]
[1674000283059,0.00024102,21169.0,21167.0,0.3]
[1674000283303,0.00024102,21169.0,21167.0,0.944849]
[1674000283304,0.32253402,21169.0,21167.0,0.944849]
[1674000283566,0.6130695,21169.0,21167.0,0.472418]
[1674000283832,0.6889695,21169.0,21166.0,0.472444]
[1674000284096,1.35208445,21169.0,21166.0,0.472444]
[1674000284370,1.35208445,21169.0,21166.0,1.30695113]
[1674000284371,0.321293,21168.0,21166.0,1.30695113]
[1674000284643,0.321293,21167.0,21166.0,1.30695113]
[1674000284913,0.00707533,21170.0,21166.0,1.30695113]
[1674000285451,0.00707533,21170.0,21167.0,0.3]
[1674000285732,0.00707533,21170.0,21168.0,0.944822]
[1674000286020,0.013,21169.0,21168.0,0.944822]
[1674000286273,0.321293,21169.0,21168.0,0.944822]
[1674000287103,0.321293,21169.0,21168.0,0.951822]
[1674000287378,0.321293,21169.0,21168.0,0.944822]
[1674000287654,0.51301895,21169.0,21168.0,0.039]
[1674000287928,1.65983494,21169.0,21168.0,0.039]
[1674000288214,1.77146819,21169.0,21168.0,0.039]
[1674000288799,1.65983494,21169.0,21168.0,0.039]
[1674000289052,1.77146819,21169.0,21168.0,0.039]
[1674000289305,1.77146819,21169.0,21162.0,0.83115038]
[1674000289306,1.77046819,21169.0,21162.0,0.83115038]
[1674000289587,0.80731294,21168.0,21162.0,0.83115038]
[1674000289869,0.66201895,21167.0,21162.0,0.83115038]
[1674000290145,0.51201895,21166.0,21162.0,0.83115038]
[1674000290407,0.321293,21165.0,21162.0,0.83115038]
[1674000290669,0.321293,21164.0,21162.0,0.39862138]
[1674000290951,0.321293,21163.0,21162.0,0.35932845]
[1674000291228,0.321293,21163.0,21162.0,0.43832845]
[1674000291491,0.321293,21163.0,21161.0,0.4955]
[1674000291749,0.5198222,21163.0,21160.0,0.00892434]
[1674000292011,0.321293,21162.0,21160.0,0.00892434]
[1674000292576,0.321293,21161.0,21160.0,0.00892434]
[1674000293324,0.321293,21161.0,21160.0,0.08692434]
[1674000293591,0.32153402,21161.0,21160.0,0.00892434]
[1674000293839,0.32253402,21161.0,21160.0,0.08692434]
[1674000294097,0.322293,21161.0,21160.0,0.08692434]
[1674000294364,0.32253402,21161.0,21160.0,0.08692434]
[1674000294610,0.322293,21161.0,21160.0,0.08692434]
[1674000294913,0.322293,21161.0,21160.0,0.38692434]
[1674000295376,0.001,21161.0,21160.0,0.38692434]
[1674000295627,0.001,21161.0,21160.0,1.40730234]
[1674000297140,0.0002194,21161.0,21160.0,2.3178041]
[1674000297422,0.0002194,21161.0,21160.0,2.81683751]
[1674000297664,0.33901633,21170.0,21160.0,3.02256921]
[1674000297942,0.52974228,21170.0,21165.0,0.0752]
[1674000298195,0.33901633,21170.0,21166.0,1.417343]
[1674000298457,0.33901633,21170.0,21167.0,0.3]
[1674000298719,0.00707533,21170.0,21168.0,0.472411]
[1674000298983,0.00707533,21170.0,21169.0,0.1244823]
[1674000300574,0.00707533,21170.0,21169.0,0.1614823]
[1674000300821,0.00731635,21170.0,21169.0,0.037]
[1674000301079,0.32860935,21170.0,21169.0,0.037]
[1674000301392,0.33710935,21170.0,21169.0,0.037]
[1674000301653,0.33710935,21170.0,21169.0,0.0342]
[1674000301910,0.33686833,21170.0,21169.0,0.03490683]
[1674000302164,0.32836833,21170.0,21169.0,0.03490683]
[1674000302707,0.32836833,21170.0,21169.0,0.0342]
[1674000303223,0.32836833,21170.0,21169.0,0.408052]
[1674000303477,0.32836833,21170.0,21169.0,0.108052]
[1674000303734,0.32836833,21170.0,21169.0,0.58044]
[1674000304039,0.00707533,21170.0,21169.0,1.352828]
[1674000304872,0.00707533,21170.0,21169.0,1.278976]
[1674000305382,0.00707533,21170.0,21169.0,1.244776]
[1674000305659,0.00707533,21170.0,21169.0,1.280776]
[1674000307504,0.00707533,21170.0,21169.0,1.63472]
[1674000308017,0.00707533,21170.0,21169.0,1.356676]
[1674000308280,0.00707533,21170.0,21169.0,1.764376]
[1674000310071,0.00707533,21170.0,21169.0,2.236764]
[1674000310318,0.00707533,21170.0,21169.0,2.307464]
[1674000310587,0.00707533,21170.0,21169.0,2.585508]
[1674000312156,0.00707533,21170.0,21169.0,2.96488274]
[1674000312363,0.00707533,21170.0,21169.0,3.52465703]
[1674000312614,0.00707533,21170.0,21169.0,3.48865703]
[1674000312862,0.00707533,21170.0,21169.0,3.58065703]
[1674000313117,0.00707533,21170.0,21169.0,3.65809443]
[1674000313377,0.00707533,21170.0,21169.0,3.98463541]
[1674000313636,0.00707533,21170.0,21169.0,3.48865703]
[1674000313896,0.00707533,21170.0,21169.0,3.58065703]
[1674000314665,0.00707533,21170.0,21169.0,3.46769865]
[1674000314900,0.00707533,21170.0,21169.0,3.56178488]
[1674000315150,0.00707533,21170.0,21169.0,3.41038488]
[1674000315418,0.00707533,21170.0,21169.0,3.56128488]
[1674000315697,0.00707533,21170.0,21169.0,3.4483265]
[1674000315968,0.00707533,21170.0,21169.0,3.3563265]
[1674000316212,0.00707533,21170.0,21169.0,3.4483265]
[1674000316716,0.00707533,21170.0,21169.0,3.3563265]
[1674000316968,0.00707533,21170.0,21169.0,3.4483265]
[1674000317246,0.00164189,21170.0,21169.0,3.4483265]
[1674000317783,0.00164189,21170.0,21169.0,2.99335176]
[1674000318105,0.00164189,21170.0,21169.0,2.69335176]
[1674000318620,0.00164189,21170.0,21169.0,2.61805176]
[1674000318873,0.00164189,21170.0,21169.0,2.69345176]
[1674000319757,0.00164189,21170.0,21169.0,2.61805176]
[1674000320032,0.00164189,21170.0,21169.0,2.34000776]
[1674000320851,0.00164189,21170.0,21169.0,2.64000776]
[1674000321903,0.00164189,21170.0,21169.0,2.34000776]
[1674000322166,0.00164189,21170.0,21169.0,1.85640776]
[1674000322432,0.00164189,21170.0,21169.0,1.38401976]
[1674000322682,0.32293489,21170.0,21169.0,1.38401976]
[1674000322953,0.32317591,21170.0,21169.0,1.38401976]
[1674000323215,0.32293489,21170.0,21169.0,1.59201976]
[1674000323513,0.32393489,21170.0,21169.0,1.67701976]
[1674000323803,0.32293489,21170.0,21169.0,1.59201976]
[1674000324075,0.32293489,21170.0,21169.0,1.62801976]
[1674000324343,0.32317591,21170.0,21169.0,0.975776]
[1674000324596,0.87295122,21170.0,21169.0,0.036]
[1674000324865,0.68222527,21170.0,21169.0,0.036]
[1674000325141,0.68222527,21170.0,21168.0,0.472394]
[1674000325406,0.00164189,21170.0,21169.0,0.0980809]
[1674000325673,0.00164189,21170.0,21169.0,0.944776]
[1674000325933,0.32293489,21170.0,21168.0,0.472394]
[1674000326186,0.321293,21169.0,21168.0,0.472394]
[1674000326710,0.32153402,21169.0,21167.0,0.472431]
[1674000326967,0.321293,21168.0,21167.0,0.944852]
[1674000327500,0.321293,21168.0,21166.0,0.944878]
[1674000327772,0.321293,21168.0,21167.0,0.006]
[1674000328050,0.321293,21168.0,21166.0,0.94488]
[1674000328309,0.329293,21168.0,21167.0,0.001]
[1674000328610,0.329293,21168.0,21167.0,0.473433]
[1674000328879,0.62643736,21168.0,21167.0,0.001]
[1674000329958,1.31839809,21168.0,21167.0,0.001]
[1674000330259,1.39429809,21168.0,21167.0,0.001]
[1674000330791,1.09884836,21168.0,21167.0,0.001]
[1674000331045,0.70233736,21168.0,21167.0,0.001]
[1674000331320,1.17474836,21168.0,21167.0,0.001]
[1674000331581,0.62643736,21168.0,21167.0,0.001]
[1674000333164,1.17454836,21168.0,21164.0,0.6877966]
[1674000333426,1.12962026,21168.0,21167.0,0.0161984]
[1674000333676,1.26018731,21168.0,21167.0,0.0161984]
[1674000333949,1.73259831,21168.0,21167.0,0.0161984]
[1674000335541,1.64720038,21168.0,21167.0,0.0161984]
[1674000335791,0.70237838,21168.0,21167.0,0.0161984]
[1674000337347,1.33440738,21168.0,21167.0,0.0161984]
[1674000337627,1.65570038,21168.0,21167.0,0.0161984]
[1674000337888,1.80570038,21168.0,21167.0,0.0161984]
[1674000338170,2.08717501,21168.0,21167.0,0.0161984]
[1674000338661,1.93717501,21168.0,21167.0,0.0161984]
[1674000338955,1.65570038,21168.0,21167.0,0.0161984]
[1674000339451,1.18328938,21168.0,21167.0,0.0161984]
[1674000340584,1.65570038,21168.0,21167.0,0.0161984]
[1674000340847,1.18328938,21168.0,21167.0,0.0161984]
[1674000341673,1.10758938,21168.0,21167.0,0.0161984]
[1674000342193,1.80798471,21168.0,21167.0,0.0161984]
[1674000343282,1.33557371,21168.0,21167.0,0.0161984]
[1674000344293,1.10758938,21168.0,21167.0,0.0161984]
[1674000344559,1.58000038,21168.0,21167.0,0.0161984]
[1674000345066,1.10758938,21168.0,21167.0,0.0161984]
[1674000345327,1.58000038,21168.0,21167.0,0.0161984]
[1674000346098,1.65550038,21168.0,21167.0,0.0161984]
[1674000346362,0.71067838,21168.0,21167.0,0.0161984]
[1674000346675,1.18308938,21168.0,21167.0,0.0161984]
[1674000347146,1.65550038,21168.0,21167.0,0.0161984]
[1674000347649,1.18308938,21168.0,21167.0,0.0161984]
[1674000347906,0.71067838,21168.0,21167.0,0.0161984]
[1674000348418,1.18308938,21168.0,21167.0,0.0161984]
[1674000348672,1.10734836,21168.0,21167.0,0.0161984]
[1674000349494,0.329293,21168.0,21167.0,0.0161984]
[1674000349766,0.329293,21168.0,21167.0,0.1472701]
[1674000350044,0.321293,21168.0,21167.0,0.1472701]
[1674000350307,0.321293,21168.0,21167.0,0.0161984]
[1674000350668,0.321293,21168.0,21167.0,0.9970644]
[1674000350671,0.321293,21168.0,21167.0,0.9610644]
[1674000350981,0.330293,21168.0,21167.0,0.9620644]
[1674000351245,0.009,21168.0,21167.0,0.9620644]
[1674000352035,0.330293,21168.0,21167.0,0.9620644]
[1674000352564,0.330293,21168.0,21167.0,0.4896314]
[1674000352826,0.330293,21168.0,21167.0,0.0171984]
[1674000352827,0.09369,21168.0,21167.0,0.0171984]
[1674000353137,0.414983,21168.0,21167.0,0.0171984]
[1674000353672,1.15100649,21168.0,21167.0,0.0171984]
[1674000354191,1.62341749,21168.0,21167.0,0.0171984]
[1674000355860,1.43594602,21168.0,21167.0,0.0171984]
[1674000357900,0.87884502,21168.0,21167.0,0.0171984]
[1674000358161,0.87884502,21168.0,21167.0,0.01709881]
[1674000358162,0.330293,21168.0,21167.0,0.01709881]
[1674000358965,0.802704,21168.0,21167.0,0.01709881]
[1674000359992,0.330293,21168.0,21167.0,0.01709881]
[1674000360247,0.009,21168.0,21167.0,1.38775408]
[1674000360770,0.47400989,21170.0,21167.0,0.01609881]
[1674000361050,0.36915667,21169.0,21167.0,0.05209881]
[1674000361300,0.321293,21168.0,21167.0,0.01609881]
[1674000361556,0.321293,21168.0,21167.0,0.10109881]
[1674000361557,0.322293,21168.0,21167.0,0.10109881]
[1674000361820,0.32153402,21168.0,21167.0,0.01609881]
[1674000362076,0.00164189,21170.0,21167.0,1.29696481]
[1674000362353,0.00164189,21170.0,21167.0,1.26096481]
[1674000362599,0.008,21168.0,21167.0,1.26696481]
[1674000363389,0.00164189,21170.0,21167.0,1.26096481]
[1674000363647,0.008,21168.0,21167.0,1.26796481]
[1674000363913,0.32253185,21170.0,21167.0,1.26096481]
[1674000364179,0.001,21168.0,21167.0,1.34596481]
[1674000364987,0.00024102,21168.0,21167.0,0.96096481]
[1674000365246,0.32253185,21170.0,21167.0,0.96096481]
[1674000365512,0.32353185,21170.0,21167.0,1.04596481]
[1674000365766,0.321293,21169.0,21167.0,1.04596481]
[1674000366033,0.321293,21168.0,21167.0,1.04596481]
[1674000366540,0.32277287,21170.0,21167.0,0.96096481]
[1674000366545,0.32277287,21170.0,21167.0,1.04596481]
[1674000366840,0.321293,21169.0,21167.0,0.96096481]
[1674000367077,0.321293,21168.0,21167.0,1.04596481]
[1674000367331,0.32253185,21170.0,21167.0,0.96096481]
[1674000367609,0.32253185,21170.0,21167.0,1.04596481]
[1674000367610,0.001,21168.0,21167.0,1.04596481]